bitfinex-derivatives/quotes_SOLF0:USTF0_20250425
["timestamp","ask_amount","ask_price","bid_price","bid_amount"]
[1745593028525,6.4294,155.43,155.36,38.84]
[1745593028823,43.34222606,155.43,155.34,3.7854]
[1745593029219,43.34222606,155.43,155.32,509.5098]
[1745593029220,43.34222606,155.4,155.32,7.8498]
[1745593029429,6.4313,155.38,155.32,7.8498]
[1745593029627,26.71168807,155.39,155.32,7.8498]
[1745593029823,38.86,155.38,155.32,7.8498]
[1745593030028,38.86,155.38,155.29,3.804]
[1745593030029,26.71168807,155.36,155.24,501.84]
[1745593030330,26.71168807,155.36,155.25,11.7158]
[1745593030524,6.4331,155.34,155.28,6.4352]
[1745593030724,26.71168807,155.36,155.25,11.7158]
[1745593031321,26.71168807,155.36,155.25,38.42748807]
[1745593031526,38.86,155.38,155.27,43.40224453]
[1745593032228,38.86,155.38,155.25,11.7158]
[1745593032229,43.40224453,155.37,155.25,11.7158]
[1745593032631,43.40224453,155.34,155.25,11.7158]
[1745593033131,6.4338,155.32,155.27,6.4355]
[1745593033331,43.40224453,155.34,155.25,11.7158]
[1745593033634,49.83504453,155.34,155.25,11.7158]
[1745593033929,43.40224453,155.34,155.25,11.7158]
[1745593034831,43.40224453,155.34,155.3,6.4343]
[1745593035326,43.40224453,155.34,155.25,11.7158]
[1745593035933,6.4334,155.33,155.25,11.7158]
[1745593036229,43.40224453,155.34,155.25,11.7158]
[1745593036430,6.4334,155.33,155.28,6.435]
[1745593036834,43.40224453,155.34,155.21,43.40224453]
[1745593037035,43.40224453,155.34,155.22,11.8013]
[1745593037228,43.40224453,155.31,155.22,11.8013]
[1745593038634,43.40224453,155.31,155.22,3.8775]
[1745593038834,6.4354,155.28,155.23,6.4371]
[1745593039137,38.88,155.32,155.22,3.8775]
[1745593039333,6.4344,155.31,155.26,6.4358]
[1745593039527,38.88,155.32,155.26,6.4358]
[1745593039728,38.88,155.32,155.22,3.8775]
[1745593039934,6.4345,155.3,155.25,6.4365]
[1745593040130,43.40224453,155.31,155.22,3.8775]
[1745593041230,6.4357,155.28,155.23,6.4372]
[1745593041632,43.40224453,155.31,155.22,3.8775]
[1745593042036,43.40224453,155.28,155.22,3.8775]
[1745593042231,37.64,155.27,155.16,500.74]
[1745593042436,43.40224453,155.25,155.17,7.8165]
[1745593042838,6.4376,155.23,155.18,6.4393]
[1745593043131,43.40224453,155.25,155.15,3.9448]
[1745593043436,6.4398,155.18,155.13,6.4412]
[1745593043630,6.4398,155.18,155.12,3.6998]
[1745593043828,6.4403,155.16,155.12,3.6998]
[1745593044029,43.40224453,155.19,155.1,4.0158]
[1745593044538,6.4401,155.17,155.1,10.4583]
[1745593044732,43.40224453,155.19,155.1,4.0158]
[1745593045437,43.40224453,155.16,155.1,4.0158]
[1745593045732,43.40224453,155.19,155.1,4.0158]
[1745593046236,43.40224453,155.19,155.13,6.4414]
[1745593046434,43.40224453,155.19,155.1,4.0158]
[1745593046635,37.66,155.2,155.12,43.40224453]
[1745593047134,37.66,155.2,155.1,4.0158]
[1745593047340,37.66,155.2,155.16,6.4401]
[1745593048137,43.40224453,155.21,155.1,4.0158]
[1745593049540,43.40224453,155.21,155.14,6.4408]
[1745593049838,43.40224453,155.21,155.1,4.0158]
[1745593050140,6.4393,155.19,155.1,4.0158]
[1745593050537,43.40224453,155.21,155.1,4.0158]
[1745593050839,6.4397,155.18,155.14,6.4409]
[1745593051241,43.40224453,155.21,155.1,4.0158]
[1745593051436,6.4407,155.16,155.11,6.4422]
[1745593051739,43.40224453,155.18,155.1,4.0158]
[1745593052038,6.4401,155.17,155.13,6.4414]
[1745593052236,43.40224453,155.18,155.1,4.0158]
[1745593052431,6.4391,155.19,155.1,4.0158]
[1745593053040,6.4388,155.2,155.15,6.4405]
[1745593053233,6.4388,155.2,155.1,4.0158]
[1745593053633,6.4388,155.2,155.15,6.4404]
[1745593053838,37.66,155.22,155.14,26.7727093]
[1745593054236,37.66,155.22,155.19,6.4389]
[1745593054637,37.66,155.22,155.14,63.2727093]
[1745593055242,36.5,155.28,155.17,26.7727093]
[1745593055442,36.5,155.28,155.25,6.4365]
[1745593056044,36.5,155.28,155.19,36.5]
[1745593056342,63.2727093,155.28,155.19,36.5]
[1745593056545,63.2727093,155.28,155.22,6.4375]
[1745593056837,63.2727093,155.28,155.18,11.792]
[1745593057142,26.7727093,155.25,155.18,7.7935]
[1745593057334,26.7727093,155.25,155.11,63.2727093]
[1745593057540,26.7727093,155.22,155.11,36.5]
[1745593057741,26.7727093,155.25,155.11,63.2727093]
[1745593057941,26.7727093,155.25,155.19,6.4388]
[1745593058244,6.4389,155.2,155.11,36.5]
[1745593058841,6.4391,155.19,155.11,36.5]
[1745593059344,33.2106093,155.22,155.11,36.5]
[1745593059545,26.7727093,155.22,155.11,36.5]
[1745593059747,26.7727093,155.22,155.17,6.4395]
[1745593059946,26.7727093,155.22,155.11,36.5]
[1745593060946,6.4398,155.18,155.14,6.4409]
[1745593061248,26.7727093,155.16,155.02,49.3919]
[1745593061450,6.443,155.1,155.03,3.7961]
[1745593061747,26.7727093,155.1,155.03,3.7961]
[1745593061949,6.4438,155.08,155.03,3.7961]
[1745593062140,26.7727093,155.1,154.99,463.7]
[1745593063046,6.4443,155.07,155.01,6.4465]
[1745593063245,26.7727093,155.12,154.99,490.4727093]
[1745593063745,6.4432,155.09,154.99,490.4727093]
[1745593064050,26.7727093,155.12,154.99,490.4727093]
[1745593064550,26.7727093,155.06,154.98,7.9305]
[1745593064750,63.2727093,155.06,154.98,7.9305]
[1745593065154,26.7727093,155.03,154.93,67.0143093]
[1745593065452,6.447,155.0,154.94,6.4493]
[1745593065654,26.7727093,155.03,154.93,40.2416]
[1745593065850,26.7727093,155.0,154.93,3.7416]
[1745593066050,6.4477,154.99,154.93,10.1912]
[1745593066255,26.7727093,154.97,154.85,36.5]
[1745593066455,26.7727093,154.94,154.85,40.3829]
[1745593066650,6.4506,154.92,154.86,6.4527]
[1745593066949,26.7727093,154.94,154.85,40.3829]
[1745593067150,6.4499,154.93,154.85,46.8357]
[1745593067354,26.7727093,154.94,154.85,40.3829]
[1745593067758,33.2222093,154.94,154.86,6.4525]
[1745593068457,26.7727093,154.91,154.79,36.52]
[1745593068760,26.7727093,154.85,154.75,36.52]
[1745593069053,33.2262093,154.85,154.77,6.4561]
[1745593069257,26.7727093,154.85,154.74,11.7803]
[1745593069456,33.2262093,154.85,154.76,6.4565]
[1745593069655,26.7727093,154.85,154.74,11.7803]
[1745593069955,26.7727093,154.88,154.75,26.7727093]
[1745593070159,500.54,154.9,154.78,26.7727093]
[1745593070355,500.54,154.9,154.81,26.7727093]
[1745593070555,36.54,154.9,154.81,63.3127093]
[1745593070756,63.3127093,154.94,154.82,3.873]
[1745593070951,69.7623093,154.94,154.82,3.873]
[1745593071154,26.7727093,154.88,154.62,12.9249]
[1745593071358,80.23966308,154.87,154.74,43.69966308]
[1745593071658,80.23966308,154.87,154.75,4.0026]
[1745593072352,43.69966308,154.84,154.75,4.0026]
[1745593072658,507.95966308,154.9,154.77,43.69966308]
[1745593072859,507.95966308,154.9,154.8,43.69966308]
[1745593073060,507.95966308,154.9,154.78,35.38]
[1745593073560,464.44,154.99,154.89,43.69966308]
[1745593073762,6.4479,154.98,154.89,43.69966308]
[1745593073961,464.44,154.99,154.89,43.69966308]
[1745593075064,464.44,154.99,154.88,4.1035]
[1745593075463,6.4485,154.97,154.91,6.4505]
[1745593075859,464.44,154.99,154.91,6.4505]
[1745593076063,464.44,154.99,154.92,6.4502]
[1745593076463,464.44,154.99,154.89,43.69966308]
[1745593076956,464.44,154.99,154.92,43.69966308]
[1745593077161,464.44,154.99,154.9,7.5105]
[1745593077363,35.38,155.0,154.93,43.69966308]
[1745593077563,6.4461,155.03,154.96,6.4482]
[1745593078064,79.07966308,155.04,154.96,6.4482]
[1745593078263,6.4457,155.03,154.96,6.4482]
[1745593078563,79.07966308,155.04,154.9,7.5105]
[1745593078764,6.4475,154.99,154.9,7.5105]
[1745593078964,35.38,154.98,154.87,35.38]
[1745593079164,35.38,154.98,154.89,43.69966308]
[1745593079467,464.46,155.07,154.92,43.69966308]
[1745593079665,43.69966308,155.06,154.93,35.38]
[1745593080057,43.69966308,155.03,154.93,35.38]
[1745593080258,35.38,155.02,154.93,35.38]
[1745593080962,35.38,155.02,154.93,41.8297]
[1745593081367,35.38,155.02,154.93,35.38]
[1745593081665,6.4474,154.99,154.93,35.38]
[1745593081865,35.38,155.02,154.93,35.38]
[1745593082265,35.38,155.02,154.89,79.07966308]
[1745593082467,35.38,155.02,154.92,50.14956308]
[1745593082663,35.38,155.02,154.92,43.69966308]
[1745593082859,6.4468,155.01,154.92,43.69966308]
[1745593083169,35.38,155.02,154.92,43.69966308]
[1745593083466,35.38,155.02,154.89,79.07966308]
[1745593083659,6.4469,155.0,154.9,6.4508]
[1745593084168,6.4466,155.01,154.89,79.07966308]
[1745593084369,35.38,155.02,154.89,79.07966308]
[1745593084569,464.46,155.07,154.97,43.69966308]
[1745593084869,57.75885,155.1,155.0,43.69966308]
[1745593085265,6.4433,155.09,155.0,43.69966308]
[1745593085468,57.75885,155.1,155.0,43.69966308]
[1745593085771,22.37885,155.1,155.03,43.69966308]
[1745593086862,6.4433,155.09,155.03,43.69966308]
[1745593087067,22.37885,155.1,155.03,43.69966308]
[1745593087367,6.4455,155.04,154.98,11.8832]
[1745593087573,35.38,155.09,154.98,11.8832]
[1745593088672,6.4445,155.06,154.98,18.3307]
[1745593088970,22.37885,155.1,155.03,43.69966308]
[1745593089674,22.37885,155.1,155.02,35.38]
[1745593090065,22.37885,155.1,155.03,43.69966308]
[1745593090570,22.37885,155.1,155.05,6.4448]
[1745593090770,22.37885,155.1,155.06,43.69966308]
[1745593090970,6.4407,155.15,155.09,43.69966308]
[1745593091173,35.38,155.18,155.07,90.65076308]
[1745593091371,79.07966308,155.18,155.07,90.65076308]
[1745593091571,79.07966308,155.18,155.07,35.36]
[1745593091572,43.69966308,155.15,155.07,35.36]
[1745593091772,43.69966308,155.15,155.04,43.69966308]
[1745593091973,43.69966308,155.12,154.99,35.36]
[1745593092174,35.36,155.11,154.99,35.36]
[1745593092479,43.1447,155.11,154.99,35.36]
[1745593092675,43.69966308,155.09,154.99,35.36]
[1745593092876,6.4448,155.05,154.98,6.4476]
[1745593093075,43.69966308,155.09,154.95,35.36]
[1745593093772,43.69966308,155.06,154.95,35.36]
[1745593093973,35.36,155.05,154.95,35.36]
[1745593094680,6.4454,155.04,154.97,6.4478]
[1745593095777,35.36,155.05,154.95,35.36]
[1745593095977,35.36,155.05,154.95,43.2318]
[1745593096887,6.4454,155.04,154.97,6.4478]
[1745593097181,35.36,155.05,154.97,6.4478]
[1745593097381,6.4456,155.04,154.98,6.4477]
[1745593097578,35.36,155.05,154.95,43.2318]
[1745593098279,35.36,155.05,154.97,43.69966308]
[1745593098476,35.36,155.05,154.99,6.4471]
[1745593098677,35.36,155.05,154.95,43.2318]
[1745593098982,35.36,155.05,154.98,6.4475]
[1745593098983,6.4458,155.03,154.98,6.4475]
[1745593099280,35.36,155.05,154.95,43.2318]
[1745593099477,35.36,155.05,155.01,6.4463]
[1745593099681,35.36,155.05,154.97,43.69966308]
[1745593099981,41.8051,155.05,155.0,6.4466]
[1745593100182,35.36,155.05,155.0,6.4466]
[1745593100683,35.36,155.05,155.01,6.4462]
[1745593101081,35.36,155.05,154.97,43.69966308]
[1745593101381,6.4451,155.05,154.97,43.69966308]
[1745593101782,6.4453,155.04,155.0,6.4467]
[1745593102280,34.2,155.09,155.01,5.0]
[1745593102871,6.4441,155.07,155.03,6.4455]
[1745593103078,34.2,155.09,155.01,5.0]
[1745593103580,34.2,155.09,155.04,6.4453]
[1745593103581,6.4437,155.08,155.04,6.4453]
[1745593103975,40.6436,155.09,155.04,6.4453]
[1745593104177,34.2,155.09,155.05,6.4448]
[1745593104580,34.2,155.09,155.01,31.80026032]
[1745593104979,34.2,155.09,155.04,6.445]
[1745593105278,3.72397,155.13,155.07,26.80026032]
[1745593105484,3.72397,155.13,155.09,6.4429]
[1745593105680,3.72397,155.13,155.07,26.80026032]
[1745593106484,3.72397,155.13,155.1,26.80026032]
[1745593106679,3.72397,155.13,155.06,3.7641]
[1745593106874,3.72397,155.13,155.08,26.80026032]
[1745593107279,6.4422,155.12,155.09,6.443]
[1745593107583,3.72397,155.13,155.09,6.443]
[1745593107779,3.72397,155.13,155.08,6.4434]
[1745593107983,3.72397,155.13,155.06,47.28827877]
[1745593108280,34.2,155.12,154.86,22.06234988]
[1745593108488,43.52417877,154.87,154.86,16.18238742]
[1745593108676,43.52417877,154.87,154.81,208.01809225]
[1745593108879,34.2,154.86,154.81,208.01809225]
[1745593109277,6.4538,154.84,154.81,208.01809225]
[1745593109485,34.2,154.86,154.81,208.01809225]
[1745593109791,43.52417877,154.84,154.81,208.01809225]
[1745593110486,103.02973903,154.84,154.72,34.2]
[1745593111285,59.50556026,154.84,154.73,43.52417877]
[1745593112189,59.50556026,154.84,154.77,6.4563]
[1745593112388,59.50556026,154.87,154.77,34.22]
[1745593112589,59.50556026,154.87,154.79,43.52417877]
[1745593112792,16.38556026,154.87,154.82,43.52417877]
[1745593112990,16.38556026,154.87,154.83,34.22]
[1745593114092,16.38556026,154.87,154.84,6.4535]
[1745593114390,16.38556026,154.87,154.83,34.22]
[1745593114588,16.38556026,154.87,154.85,6.4528]
[1745593114788,16.38556026,154.87,154.85,43.52417877]
[1745593115093,83.09984039,154.89,154.85,43.52417877]
[1745593115294,185.9548758,154.92,154.88,43.52417877]
[1745593115589,3.9002,154.99,154.8,410.07277877]
[1745593115590,43.52417877,155.02,154.91,43.52417877]
[1745593115789,43.52417877,155.02,154.93,6.4497]
[1745593115989,43.52417877,155.02,154.91,43.52417877]
[1745593116190,3.7668,155.03,154.91,43.52417877]
[1745593116486,47.29097877,155.03,154.91,43.52417877]
[1745593116891,47.29097877,155.03,154.89,33.06]
[1745593117593,43.52417877,155.0,154.89,33.06]
[1745593117992,43.52417877,155.0,154.91,6.4506]
[1745593118193,76.58417877,155.0,154.89,33.06]
[1745593118389,76.58417877,155.0,154.91,6.4503]
[1745593118994,76.58417877,155.0,154.89,33.06]
[1745593119695,76.58417877,155.0,154.93,6.4498]
[1745593119895,33.06,155.0,154.89,76.58417877]
[1745593120195,33.06,155.0,154.93,6.4497]
[1745593120396,33.06,155.0,154.89,76.58417877]
[1745593120595,33.06,155.0,154.89,33.06]
[1745593120596,43.52417877,154.98,154.89,33.06]
[1745593120793,3.7669,154.97,154.89,33.06]
[1745593121394,3.7669,154.97,154.91,6.4504]
[1745593121692,3.7669,154.97,154.89,33.06]
[1745593121894,3.7669,154.97,154.9,6.4508]
[1745593122098,3.7669,154.97,154.89,33.06]
[1745593122099,43.52417877,154.95,154.89,33.06]
[1745593122494,19.31,155.08,154.93,12.8995]
[1745593122696,43.52417877,155.24,155.05,43.52417877]
[1745593122998,43.52417877,155.24,155.1,43.52417877]
[1745593123494,7.8145,155.25,155.16,6.4402]
[1745593123698,7.8145,155.25,155.13,43.52417877]
[1745593124195,33.04,155.24,155.11,33.06]
[1745593124702,6.4381,155.22,155.14,6.441]
[1745593124902,3.7875,155.21,155.14,6.441]
[1745593125399,3.7875,155.21,155.11,33.06]
[1745593126201,10.226,155.21,155.13,6.4412]
[1745593126502,10.226,155.21,155.11,33.06]
[1745593126901,3.7875,155.21,155.14,6.4408]
[1745593127303,3.7875,155.21,155.11,33.06]
[1745593127498,47.31167877,155.21,155.11,33.06]
[1745593127703,47.31167877,155.21,155.1,43.52417877]
[1745593128006,53.75017877,155.21,155.13,6.4413]
[1745593128203,47.31167877,155.21,155.1,43.52417877]
[1745593128704,6.4393,155.19,155.11,6.442]
[1745593128905,33.04,155.19,155.11,6.442]
[1745593129106,33.04,155.19,155.1,43.52417877]
[1745593129909,39.4793,155.19,155.13,6.4413]
[1745593130106,39.4793,155.19,155.1,43.52417877]
[1745593130308,33.04,155.19,155.07,76.56417877]
[1745593130504,6.4395,155.18,155.11,6.442]
[1745593130807,33.04,155.19,155.11,6.442]
[1745593131102,6.4403,155.16,155.1,6.4426]
[1745593131502,6.4407,155.15,155.09,6.4431]
[1745593131697,33.04,155.19,155.07,76.56417877]
[1745593132099,33.04,155.19,155.07,43.52417877]
[1745593132300,43.52417877,155.15,155.01,43.52417877]
[1745593132504,43.52417877,155.12,155.01,43.52417877]
[1745593132798,3.9398,155.11,155.0,33.04]
[1745593133307,6.4436,155.09,155.03,6.4457]
[1745593133508,33.04,155.09,155.0,33.04]
[1745593133807,6.4439,155.08,155.02,6.4459]
[1745593134005,33.04,155.09,155.0,33.04]
[1745593134498,76.56417877,155.09,155.0,33.04]
[1745593134800,76.56417877,155.09,154.97,43.52417877]
[1745593135002,33.04,155.09,154.99,6.447]
[1745593135207,33.04,155.09,154.97,43.52417877]
[1745593135701,6.4439,155.08,154.97,43.52417877]
[1745593135908,33.04,155.09,154.97,43.52417877]
[1745593136306,33.04,155.09,154.98,6.4476]
[1745593136507,33.04,155.09,154.97,43.52417877]
[1745593137420,33.04,155.09,154.97,49.97217877]
[1745593137612,33.04,155.09,154.97,43.52417877]
[1745593138207,6.4458,155.03,154.97,49.97217877]
[1745593138407,43.52417877,155.07,154.96,33.04]
[1745593138813,43.52417877,155.04,154.96,33.04]
[1745593139015,7.6688,155.03,154.94,43.52417877]
[1745593139215,6.4472,155.0,154.94,43.52417877]
[1745593139612,3.8599,155.02,154.94,43.52417877]
[1745593139913,6.4476,154.99,154.94,43.52417877]
[1745593140115,6.4476,154.99,154.94,49.97357877]
[1745593140314,3.8599,155.02,154.92,33.04]
[1745593140511,6.4468,155.01,154.94,43.52417877]
[1745593140715,6.4468,155.01,154.95,6.4489]
[1745593140916,6.4468,155.01,154.94,43.52417877]
[1745593141116,3.8599,155.02,154.94,43.52417877]
[1745593141318,7.6688,155.03,154.97,43.52417877]
[1745593141818,7.6688,155.03,154.98,6.4477]
[1745593142019,7.6688,155.03,154.97,43.52417877]
[1745593142521,7.6688,155.03,154.94,43.52417877]
[1745593142721,6.4468,155.01,154.94,43.52417877]
[1745593143119,7.6688,155.03,154.95,6.4487]
[1745593143418,11.4122,155.03,154.92,33.04]
[1745593143815,6.4472,155.0,154.92,33.04]
[1745593144021,11.4122,155.03,154.92,33.04]
[1745593144318,11.4122,155.03,154.94,6.4491]
[1745593144718,11.4122,155.03,154.92,33.04]
[1745593144930,6.4472,155.0,154.95,6.4487]
[1745593145121,11.4122,155.03,154.92,33.04]
[1745593145427,11.4122,155.03,154.95,6.4489]
[1745593145822,11.4122,155.03,154.92,33.04]
[1745593146021,11.4122,155.03,154.94,6.4494]
[1745593146225,6.4472,155.0,154.92,33.04]
[1745593146423,11.4122,155.03,154.92,33.04]
[1745593146627,6.447,155.0,154.92,33.04]
[1745593146927,11.4122,155.03,154.92,33.04]
[1745593148433,6.447,155.0,154.95,6.4488]
[1745593148826,11.4122,155.03,154.92,33.04]
[1745593148827,11.4122,155.03,154.94,43.52417877]
[1745593149024,31.92,155.08,154.97,43.52417877]
[1745593149222,47.39147877,155.11,155.0,43.52417877]
[1745593150130,6.4443,155.07,155.02,6.446]
[1745593150428,47.39147877,155.11,155.0,43.52417877]
[1745593150624,6.4457,155.03,154.98,6.4477]
[1745593150825,47.39147877,155.11,154.97,75.44417877]
[1745593151732,6.4459,155.03,154.98,6.4477]
[1745593152032,31.92,155.07,154.97,75.44417877]
[1745593152232,31.92,155.07,154.97,31.92]
[1745593152527,43.52417877,155.05,154.91,43.52417877]
[1745593152932,6.4472,155.0,154.91,43.52417877]
[1745593153126,3.8963,155.04,154.94,43.52417877]
[1745593153326,3.8963,155.04,154.95,31.92]
[1745593153534,6.4469,155.01,154.95,38.3688]
[1745593153826,3.8963,155.04,154.95,38.3688]
[1745593154034,6.4468,155.01,154.95,38.3688]
[1745593154234,4.0606,155.03,154.96,6.4485]
[1745593154833,4.0606,155.03,154.95,38.3688]
[1745593155035,6.447,155.0,154.95,38.3688]
[1745593155830,6.447,155.0,154.96,6.4486]
[1745593156034,6.447,155.0,154.95,31.92]
[1745593156328,4.0606,155.03,154.95,31.92]
[1745593156533,79.50077877,155.02,154.91,31.92]
[1745593157035,6.4476,154.99,154.95,6.449]
[1745593157233,79.50077877,155.02,154.91,31.92]
[1745593157428,42.423,155.02,154.97,6.4479]
[1745593157629,35.9766,155.02,154.93,31.92]
[1745593157931,4.0606,155.03,154.98,6.4475]
[1745593158127,43.52417877,155.01,154.85,31.92]
[1745593158325,31.92,155.0,154.89,43.52417877]
[1745593158729,31.92,155.0,154.9,31.92]
[1745593159633,6.4494,154.95,154.89,6.4513]
[1745593160031,31.92,155.0,154.87,43.52417877]
[1745593160226,31.92,155.0,154.91,6.4506]
[1745593160432,31.92,155.0,154.88,43.52417877]
[1745593160633,31.92,155.0,154.86,31.92]
[1745593160634,31.92,155.0,154.91,43.52417877]
[1745593160833,31.92,155.0,154.91,75.44417877]
[1745593161333,6.4484,154.97,154.92,6.4501]
[1745593161535,31.92,155.0,154.91,75.44417877]
[1745593162334,3.8528,155.01,154.98,6.4477]
[1745593162537,4.0606,155.03,154.97,43.52417877]
[1745593163341,2.5633,155.06,155.0,43.52417877]
[1745593163532,31.92,155.08,155.0,43.52417877]
[1745593163728,3.7821,155.1,155.01,31.92]
[1745593164229,43.52417877,155.04,154.92,31.92]
[1745593164430,43.52417877,155.07,154.94,43.52417877]
[1745593164638,6.446,155.03,154.94,43.52417877]
[1745593164837,3.7821,155.1,154.94,43.52417877]
[1745593165037,43.52417877,155.07,154.94,43.52417877]
[1745593165338,43.52417877,155.07,154.97,6.4482]
[1745593165534,43.52417877,155.07,154.98,31.92]
[1745593166036,2.4242,155.06,154.98,31.92]
[1745593166338,6.4467,155.01,154.98,31.92]
[1745593167336,43.52417877,155.04,154.98,31.92]
[1745593167537,43.52417877,155.04,154.94,6.449]
[1745593167738,43.52417877,155.01,154.94,31.92]
[1745593167941,4.9585,155.0,154.89,507.86417877]
[1745593168137,4.9585,155.0,154.9,31.92]
[1745593169738,6.4479,154.98,154.9,31.92]
[1745593169933,4.9585,155.0,154.9,31.92]
[1745593170128,6.4477,154.99,154.9,31.92]
[1745593170330,4.9585,155.0,154.9,31.92]
[1745593170737,6.4468,155.01,154.92,43.52417877]
[1745593170936,6.4468,155.01,154.96,6.4485]
[1745593171141,43.52417877,155.03,154.95,31.1]
[1745593171341,6.4472,155.0,154.95,31.1]
[1745593171641,6.4472,155.0,154.95,37.5487]
[1745593171940,43.52417877,155.03,154.95,31.1]
[1745593172641,43.52417877,155.0,154.89,495.44]
[1745593172838,74.62417877,155.0,154.89,495.44]
[1745593173044,74.62417877,155.0,154.91,6.4506]
[1745593173641,74.62417877,155.0,154.89,495.44]
[1745593174041,6.4484,154.97,154.89,495.44]
[1745593174242,74.62417877,155.0,154.89,495.44]
[1745593174440,31.1,155.0,154.89,495.44]
[1745593175340,31.1,155.0,154.91,6.4503]
[1745593175541,31.1,155.0,154.89,538.96417877]
[1745593175738,74.62417877,155.04,154.89,538.96417877]
[1745593176144,74.62417877,155.04,154.92,43.52417877]
[1745593176337,6.4468,155.01,154.92,43.52417877]
[1745593176537,74.62417877,155.04,154.92,43.52417877]
[1745593176840,74.62417877,155.04,154.98,6.4475]
[1745593176841,6.4463,155.02,154.98,6.4475]
[1745593177143,74.62417877,155.04,154.97,31.1]
[1745593178044,31.1,155.09,154.97,31.1]
[1745593178441,89.65693541,155.14,154.97,31.1]
[1745593178442,149.9776804,155.16,155.15,6.4407]
[1745593178635,149.68967288,155.17,155.15,43.52417877]
[1745593178838,60.61263366,155.18,155.16,31.1]
[1745593179047,60.61263366,155.18,155.16,37.5403]
[1745593179344,60.61263366,155.18,155.16,31.1]
[1745593179543,60.61263366,155.18,155.16,37.5399]
[1745593180245,60.61263366,155.18,155.17,6.4399]
[1745593180442,60.61263366,155.18,155.16,31.1]
[1745593180642,60.61263366,155.18,155.16,37.5402]
[1745593181646,60.61263366,155.18,155.14,464.36]
[1745593181848,43.52417877,155.19,155.07,7.48149083]
[1745593182650,6.4399,155.17,155.09,6.4428]
[1745593182949,43.52417877,155.19,155.09,6.4428]
[1745593183242,43.52417877,155.19,155.1,6.4427]
[1745593183446,43.52417877,155.19,155.07,7.48149083]
[1745593183649,43.52417877,155.19,155.06,538.76417877]
[1745593183843,6.4398,155.18,155.1,6.4427]
[1745593184042,43.52417877,155.19,155.06,538.76417877]
[1745593184347,49.96357877,155.19,155.11,6.4423]
[1745593184647,43.52417877,155.19,155.11,6.4423]
[1745593184849,43.52417877,155.19,155.06,538.76417877]
[1745593185950,43.52417877,155.19,155.13,6.4414]
[1745593186949,49.96357877,155.19,155.13,6.4414]
[1745593187147,49.96357877,155.19,155.12,6.4418]
[1745593187448,2.4028,155.2,155.09,43.52417877]
[1745593187648,2.4028,155.2,155.14,6.4409]
[1745593188248,2.4028,155.2,155.15,6.4406]
[1745593188450,2.4028,155.2,155.09,43.52417877]
[1745593188749,2.4028,155.2,155.15,6.4404]
[1745593189051,2.4028,155.2,155.09,43.52417877]
[1745593190351,2.4028,155.2,155.14,6.4409]
[1745593190552,2.4028,155.2,155.12,43.52417877]
[1745593190752,4.7409,155.21,155.15,43.52417877]
[1745593190946,4.7409,155.21,155.18,6.4391]
[1745593191744,4.7409,155.21,155.17,6.4397]
[1745593191954,4.7409,155.21,155.15,74.60417877]
[1745593192854,4.7409,155.21,155.15,81.04447877]
[1745593193047,4.7409,155.21,155.15,31.08]
[1745593193351,4.7409,155.21,155.12,74.58417877]
[1745593193751,6.439,155.2,155.14,6.4408]
[1745593193951,31.06,155.2,155.09,43.52417877]
[1745593194150,2.4,155.19,155.09,43.52417877]
[1745593194553,2.4,155.19,154.88,193.82295907]
[1745593194554,43.52417877,155.03,154.88,150.2987803]
[1745593194747,43.52417877,154.99,154.87,43.52417877]
[1745593194945,31.06,154.98,154.89,6.4514]
[1745593195149,31.06,154.97,154.87,43.52417877]
[1745593195349,31.06,154.97,154.84,43.52417877]